bitfinex/quotes_SOLUSD_20260125
["timestamp","ask_amount","ask_price","bid_price","bid_amount"]
[1769299201727,1.72738669,127.17,127.14,0.38475462]
[1769299203422,1.72738669,127.17,127.1,0.38514284]
[1769299203626,1.72738669,127.17,127.11,0.38514284]
[1769299207622,1.72738669,127.17,127.12,7.86658275]
[1769299209233,1.72738669,127.17,127.12,8.25180696]
[1769299211612,1.72738669,127.17,127.13,8.25108335]
[1769299211814,1.72738669,127.17,127.14,0.38526283]
[1769299212116,1.72738669,127.17,127.13,8.25109607]
[1769299215131,1.72738669,127.17,127.14,0.38531228]
[1769299218439,1.72738669,127.17,127.14,8.25065499]
[1769299219243,1.66814568,127.2,127.15,0.3853595]
[1769299222422,1.66814568,127.2,127.15,8.24986162]
[1769299223937,1.60524023,127.2,127.15,8.24986162]
[1769299224443,1.55658148,127.2,127.15,8.24986162]
[1769299224942,1.55658148,127.2,127.16,0.49699056]
[1769299226044,1.55658148,127.2,127.15,8.36150338]
[1769299226742,1.55658148,127.2,127.15,7.86450212]
[1769299227046,1.55658148,127.2,127.17,0.49701184]
[1769299228025,1.66814568,127.21,127.18,0.4970223]
[1769299229341,1.66814568,127.23,127.18,0.4970223]
[1769299229843,1.66814568,127.23,127.19,7.86225332]
[1769299230044,1.66814568,127.23,127.19,8.35895589]
[1769299231326,1.66814568,127.23,127.19,8.35862961]
[1769299233755,1.66814568,127.23,127.2,0.49541978]
[1769299234448,1.66814568,127.23,127.18,0.49510824]
[1769299236027,1.66814568,127.23,127.19,8.35674917]
[1769299241851,1.66814568,127.23,127.2,0.49302537]
[1769299244657,1.66814568,127.23,127.19,8.35402338]
[1769299246361,1.66814568,127.23,127.2,0.11952531]
[1769299251262,1.66814568,127.23,127.2,0.60948162]
[1769299261967,1.66814568,127.23,127.2,0.11952531]
[1769299263063,1.66814568,127.23,127.19,7.86184038]
[1769299263773,1.66814568,127.23,127.19,8.34433565]
[1769299270378,1.66814568,127.23,127.17,31.09416494]
[1769299270686,1.66814568,127.23,127.17,30.61529431]
[1769299271480,1.66814568,127.23,127.17,7.86319877]
[1769299283593,1.66814568,127.23,127.17,0.47260193]
[1769299286601,1.66814568,127.23,127.19,0.47141725]
[1769299287883,1.66814568,127.23,127.18,8.33349557]
[1769299296195,1.66814568,127.23,127.19,0.46721628]
[1769299307420,1.66814568,127.23,127.2,0.46346651]
[1769299308317,1.72410255,127.26,127.2,0.46346651]
[1769299309014,9.58207973,127.26,127.2,0.46346651]
[1769299309222,1.72410255,127.25,127.21,0.46283056]
[1769299319119,1.72410255,127.25,127.21,7.86091067]
[1769299319421,1.72410255,127.25,127.22,0.45986464]
[1769299343137,1.72410255,127.25,127.21,0.45343962]
[1769299348150,1.72410255,127.25,127.21,8.31444922]
[1769299352554,1.72410255,127.25,127.22,0.45147344]
[1769299376771,1.72410255,127.25,127.21,0.44720255]
[1769299386079,1.65156539,127.27,127.22,0.44593291]
[1769299388479,1.65156539,127.27,127.22,8.30615259]
[1769299388666,1.65156539,127.27,127.23,0.44568351]
[1769299397985,1.65156539,127.27,127.23,8.30538138]
[1769299398166,1.65156539,127.27,127.24,0.44443165]
[1769299398588,1.65156539,127.27,127.23,8.30412952]
[1769299399492,1.65156539,127.27,127.23,0.44443165]
[1769299399964,1.71765021,127.28,127.24,0.44423058]
[1769299400985,0.1,127.28,127.24,0.44423058]
[1769299401209,0.1,127.28,127.25,0.44411522]
[1769299401370,1.71765021,127.3,127.26,0.34411522]
[1769299402196,1.71765021,127.3,127.26,8.2018219]
[1769299402377,0.1,127.3,127.27,0.34423595]
[1769299404196,1.71765021,127.3,127.27,0.34423595]
[1769299415501,1.71765021,127.3,127.26,7.85770668]
[1769299415502,1.71765021,127.3,127.26,0.34585083]
[1769299420707,1.71765021,127.3,127.26,8.20355011]
[1769299422412,1.71765021,127.3,127.25,8.20480275]
[1769299425910,1.71765021,127.3,127.26,0.34693318]
[1769299444045,1.71765021,127.3,127.26,8.20483718]
[1769299450165,1.71765021,127.3,127.23,8.20874696]
[1769299450348,1.71765021,127.3,127.23,7.85978149]
[1769299450527,1.65456764,127.29,127.23,8.20874696]
[1769299456246,1.65456764,127.29,127.24,0.3494593]
[1769299459462,1.65456764,127.29,127.25,8.20819083]
[1769299462169,1.65456764,127.29,127.21,146.54703722]
[1769299462346,1.65456764,127.29,127.26,0.3498145]
[1769299463266,1.65456764,127.29,127.26,8.20770689]
[1769299469954,1.65456764,127.29,127.26,0.3498145]
[1769299473270,1.70721423,127.3,127.27,0.35046349]
[1769299474879,1.70721423,127.3,127.26,8.20804486]
[1769299487590,1.70721423,127.3,127.25,8.20943111]
[1769299487891,1.70721423,127.3,127.25,7.85833564]
[1769299488273,1.70721423,127.3,127.24,8.21016353]
[1769299490195,1.70721423,127.3,127.25,8.2097171]
[1769299492295,1.70721423,127.3,127.26,0.35128155]
[1769299493797,1.70721423,127.3,127.26,8.2087716]
[1769299499311,1.70721423,127.3,127.27,0.35154632]
[1769299499710,1.70721423,127.3,127.26,0.35154632]
[1769299504005,1.70721423,127.3,127.26,8.20901708]
[1769299507406,1.70721423,127.3,127.23,152.16878963]
[1769299507610,1.70721423,127.3,127.24,22.1518084]
[1769299508505,1.70721423,127.3,127.24,30.01065358]
[1769299511724,1.70721423,127.3,127.25,0.35194323]
[1769299513102,1.70721423,127.3,127.25,8.2101194]
[1769299520722,1.70721423,127.3,127.25,7.85817617]
[1769299520916,1.70721423,127.3,127.25,8.21038137]
[1769299521220,1.70721423,127.3,127.26,0.35223256]
[1769299521517,1.70721423,127.3,127.27,0.35223256]
[1769299523122,1.70721423,127.3,127.27,2.46599918]
[1769299531336,1.70721423,127.3,127.27,2.11376662]
[1769299534943,1.70721423,127.3,127.27,9.97101385]
[1769299535138,1.70721423,127.3,127.27,10.32358269]
[1769299538348,1.70721423,127.3,127.27,9.97101385]
[1769299538750,1.70721423,127.3,127.27,10.32366427]
[1769299540928,1.70721423,127.3,127.27,9.97101385]
[1769299541452,1.70721423,127.3,127.27,10.32372806]
[1769299542847,1.70721423,127.3,127.27,10.32382825]
[1769299543934,1.70721423,127.3,127.27,9.97111404]
[1769299544360,1.70721423,127.3,127.27,10.32388786]
[1769299545149,1.70721423,127.3,127.27,9.97111404]
[1769299546382,1.70721423,127.3,127.27,10.32392727]
[1769299547584,1.70721423,127.3,127.27,9.97111404]
[1769299548680,0.1,127.3,127.28,2.46671545]
[1769299548859,0.1,127.31,127.29,2.46671545]
[1769299549060,0.1,127.31,127.3,2.11386681]
[1769299549780,0.1,127.35,127.3,23.91386681]
[1769299549989,0.1,127.35,127.34,2.11386681]
[1769299550479,1e-08,127.35,127.34,2.11386681]
[1769299550668,1e-08,127.35,127.34,9.96685879]
[1769299560477,1e-08,127.36,127.34,29.59933876]
[1769299560675,0.1,127.38,127.35,2.11386681]
[1769299560878,1.84058493,127.38,127.37,2.11386681]
[1769299561086,1.84058493,127.38,127.36,2.11386681]
[1769299561693,1.84058493,127.38,127.37,2.11386681]
[1769299564483,1.84058493,127.38,127.35,7.85221282]
[1769299564786,1.84058493,127.38,127.36,2.11386681]
[1769299565183,1.84058493,127.38,127.35,9.96607963]
[1769299565897,1.84058493,127.38,127.35,2.11386681]
[1769299566100,1.84058493,127.38,127.34,9.96658438]
[1769299566275,1.84058493,127.38,127.34,7.85271757]
[1769299567097,1.74058493,127.37,127.34,7.85271757]
[1769299569099,1.74058493,127.37,127.33,9.9671921]
[1769299574101,1.74058493,127.37,127.34,2.11386681]
[1769299574901,1.74058493,127.37,127.33,9.9671921]
[1769299585920,1.74058493,127.37,127.33,2.11386681]
[1769299586121,1.74058493,127.37,127.32,31.76781464]
[1769299594103,1.74058493,127.37,127.33,2.11386681]
[1769299594724,1.74058493,127.37,127.3,59.13997207]
[1769299595022,0.1,127.38,127.3,59.13997207]
[1769299595023,1.56419681,127.33,127.3,59.13997207]
[1769299595409,1.56419681,127.33,127.3,66.99505813]
[1769299619449,1.56419681,127.34,127.31,1.55625915]
[1769299619639,1.56419681,127.35,127.31,1.55625915]
[1769299620627,1.56419681,127.34,127.31,1.55625915]
[1769299628148,3.67717401,127.34,127.31,1.55625915]
[1769299628562,1.51976877,127.33,127.31,1.55625915]
[1769299629458,1.51976877,127.33,127.3,29.2443383]
[1769299632067,1.51976877,127.33,127.3,27.68137401]
[1769299632252,1.49802593,127.32,127.28,9.36225814]
[1769299632567,1.49802593,127.31,127.28,9.36225814]
[1769299633672,1.49802593,127.3,127.27,1.50586081]
[1769299644057,1.49802593,127.3,127.26,9.36349259]
[1769299644358,1.49802593,127.3,127.26,11.47646979]
[1769299650868,1.49802593,127.3,127.25,9.36415139]
[1769299651059,1.49802593,127.28,127.25,9.36415139]
[1769299651259,1.49802593,127.28,127.25,11.47712859]
[1769299651972,1.49802593,127.28,127.25,9.97126778]
[1769299652272,1.49802593,127.28,127.26,1.50586081]
[1769299653174,1.50421859,127.3,127.27,1.50429745]
[1769299653475,7.85367378,127.33,127.28,3.61727465]
[1769299653476,1.50421859,127.31,127.28,3.61727465]
[1769299661481,1.50421859,127.31,127.28,1.50429745]
[1769299661660,1.50421859,127.31,127.27,3.61727465]
[1769299661855,1.50421859,127.3,127.26,9.97066702]
[1769299662076,1.50421859,127.3,127.27,1.50429745]
[1769299664479,1.50421859,127.3,127.27,3.61727465]
[1769299664883,1.50421859,127.3,127.27,3.61824615]
[1769299668778,1.50421859,127.3,127.28,1.50429745]
[1769299678207,1.50421859,127.3,127.27,3.61824615]
[1769299682307,1.50421859,127.3,127.27,11.47547778]
[1769299683607,1.50857576,127.31,127.29,1.5513633]
[1769299683787,1.50857576,127.31,127.29,3.665312]
[1769299687408,1.50857576,127.34,127.3,3.665312]
[1769299687589,1.50857576,127.34,127.31,2.1139487]
[1769299689809,1.50857576,127.34,127.32,2.1139487]
[1769299691193,1.50857576,127.36,127.32,3.665312]
[1769299691395,1.50857576,127.36,127.33,2.1139487]
[1769299692094,1.50857576,127.36,127.34,3.61131099]
[1769299692298,1.50857576,127.36,127.34,2.1139487]
[1769299693815,1.50857576,127.36,127.35,2.1139487]
[1769299694203,1.53168112,127.37,127.35,2.1139487]
[1769299694517,1.53168112,127.37,127.36,2.1139487]
[1769299695219,1.53168112,127.37,127.35,3.61131099]
[1769299698015,1.53168112,127.37,127.35,2.1139487]
[1769299698211,1.53168112,127.37,127.33,2.1139487]
[1769299698414,1.53168112,127.37,127.33,3.61131099]
[1769299701026,1.53168112,127.36,127.32,3.61131099]
[1769299701200,1.53168112,127.35,127.32,1.49736229]
[1769299703420,1.53168112,127.35,127.32,3.61131099]
[1769299712223,1.53168112,127.35,127.31,9.35174684]
[1769299712427,1.53168112,127.35,127.31,11.46569554]
[1769299714528,1.53168112,127.35,127.32,1.53478774]
[1769299719939,1.53168112,127.35,127.32,3.64873644]
[1769299724968,1.53168112,127.35,127.32,3.64696333]
[1769299728742,1.53168112,127.35,127.32,1.53478774]
[1769299736250,1.65240342,127.36,127.32,1.53478774]
[1769299736452,1.65240342,127.36,127.33,1.53478774]
[1769299740157,1.65240342,127.36,127.32,1.53478774]
[1769299740381,1.65240342,127.35,127.32,1.53478774]
[1769299757280,1.5426696,127.36,127.33,2.11217559]
[1769299757581,1.5426696,127.36,127.33,3.6605]
[1769299758070,1.5426696,127.36,127.33,1.54832441]
[1769299760678,1.6426696,127.38,127.34,1.54832441]
[1769299761247,1.6426696,127.38,127.34,2.11217559]
[1769299761451,1.6426696,127.38,127.35,1.54832441]
[1769299761974,1.6426696,127.38,127.36,3.6605]
[1769299761975,0.1,127.38,127.36,3.6605]
[1769299762177,0.1,127.38,127.36,1.54832441]
[1769299763278,1.6426696,127.38,127.35,11.51285498]
[1769299767050,1.6426696,127.38,127.35,9.96453057]
[1769299767256,1.6426696,127.38,127.36,1.54832441]
[1769299767462,0.1,127.38,127.36,1.54832441]
[1769299768382,0.1,127.39,127.37,3.6605]
[1769299768677,0.1,127.39,127.37,1.54832441]
[1769299769166,1.6426696,127.39,127.37,1.54832441]
[1769299777485,1.6426696,127.39,127.37,3.6605]
[1769299779493,30.0,127.38,127.37,3.6605]
[1769299781094,28.53375815,127.38,127.37,3.6605]
[1769299782096,28.53375815,127.38,127.37,11.51164234]
[1769299782278,28.14173181,127.38,127.37,9.96331793]
[1769299783598,28.14173181,127.38,127.37,2.11217559]
[1769299784993,28.14173181,127.38,127.36,2.11217559]
[1769299786998,28.14173181,127.38,127.36,2.13124501]
[1769299790085,29.7951452,127.38,127.36,2.13124501]
[1769299793508,29.7951452,127.38,127.34,29.69223593]
[1769299793714,29.7951452,127.38,127.35,2.11084634]
[1769299794211,29.7951452,127.38,127.35,2.1532084]
[1769299800910,29.7951452,127.38,127.36,2.11084634]
[1769299806421,1.65341339,127.37,127.35,2.11084634]
[1769299806599,1.65341339,127.37,127.34,31.76355085]
[1769299806798,1.65341339,127.37,127.35,2.11084634]
[1769299808325,1.65341339,127.37,127.34,29.73406793]
[1769299808497,1.65341339,127.37,127.34,31.84491427]
[1769299813118,1.65341339,127.37,127.34,23.91084634]
[1769299813522,1.65341339,127.37,127.34,21.8]
[1769299815523,1.65341339,127.37,127.34,23.91084634]
[1769299817225,1.65341339,127.37,127.34,21.8]
[1769299823630,1.65341339,127.37,127.34,23.91084634]
[1769299826531,1.65341339,127.37,127.34,2.11084634]
[1769299828940,1.65341339,127.37,127.33,2.21415867]
[1769299829619,1.65341339,127.37,127.34,2.24410486]
[1769299831435,1.65341339,127.37,127.35,2.11084634]
[1769299831629,1.65341339,127.37,127.34,0.13325852]
[1769299831935,1.65341339,127.37,127.34,2.24410486]
[1769299833544,1.65341339,127.37,127.34,2.11084634]
[1769299833734,1.65341339,127.37,127.33,7.99618651]
[1769299833735,1.65341339,127.37,127.33,10.10703285]
[1769299849061,1.65341339,127.37,127.33,10.10779809]
[1769299850266,1.65341339,127.37,127.34,2.11161158]
[1769299852558,1.65341339,127.37,127.34,2.28614074]
[1769299854155,1.65341339,127.37,127.34,0.17452916]
[1769299862567,1.65341339,127.37,127.33,9.9649769]
[1769299862760,1.65341339,127.37,127.33,10.15497382]
[1769299870971,1.65341339,127.37,127.33,2.3016085]
[1769299872072,1.65341339,127.37,127.33,10.15514482]
[1769299878282,1.65341339,127.37,127.33,8.04353324]
[1769299878677,1.65341339,127.37,127.33,10.15514482]
[1769299893588,1.65341339,127.37,127.34,2.11161158]
[1769299893992,1.65341339,127.37,127.34,2.33863983]
[1769299896186,1.65341339,127.37,127.35,2.11161158]
[1769299903104,1.65341339,127.37,127.34,2.33863983]
[1769299908907,1.65341339,127.37,127.34,2.33841166]
[1769299918616,1.65341339,127.37,127.34,0.22702825]
[1769299918912,1.65341339,127.37,127.34,2.33841166]
[1769299920513,1.65341339,127.37,127.34,2.11138341]
[1769299920701,1.65341339,127.37,127.35,0.18941991]
[1769299921416,1.65341339,127.37,127.34,2.11138341]
[1769299921596,1.65341339,127.37,127.34,2.29656642]
[1769299921792,1.65341339,127.37,127.34,0.18518301]
[1769299924216,28.14173181,127.38,127.36,2.11138341]
[1769299924419,1.65341339,127.37,127.35,2.11138341]
[1769299931125,1.65341339,127.37,127.34,8.02155292]
[1769299931302,1.65341339,127.37,127.35,2.11138341]
[1769299934128,1.65341339,127.37,127.34,10.13293633]
[1769299939332,1.65341339,127.37,127.34,8.02155292]
[1769299939521,29.80465495,127.38,127.35,0.11027275]
[1769299940734,28.14173181,127.38,127.37,2.11138341]
[1769299940934,28.03476897,127.38,127.37,2.21834597]
[1769299941433,28.03476897,127.38,127.37,2.11138341]
[1769299941631,28.03476897,127.38,127.37,9.96252575]
[1769299941834,0.1,127.39,127.37,9.96252575]
[1769299942034,0.1,127.39,127.38,2.11138341]
[1769299947136,0.1,127.39,127.38,9.96190939]
[1769299948057,0.1,127.39,127.37,9.96219812]
[1769299950226,1.80689481,127.39,127.36,7.85154886]
[1769299950427,1.80689481,127.39,127.36,9.96293227]
[1769299951446,1.80689481,127.39,127.35,2.11138341]
[1769299951744,1.80689481,127.39,127.36,2.11138341]
[1769299959549,1.80689481,127.39,127.37,2.11138341]
[1769299960335,0.1,127.39,127.38,2.11138341]
[1769299962465,1e-08,127.39,127.38,9.96190939]
[1769299970957,1e-08,127.39,127.38,9.96015359]
[1769299983457,1.70689482,127.39,127.37,9.96062544]
[1769299983660,1.70689482,127.39,127.36,114.06106596]
[1769299983867,1.70689482,127.39,127.36,104.1]
[1769299984066,1.70689482,127.39,127.36,9.96131574]
[1769299985687,1.70689482,127.39,127.37,2.10962761]
[1769299991000,1.70689482,127.39,127.36,2.10962761]
[1769300002002,1.70689482,127.39,127.36,3.69211013]
[1769300003798,1.70689482,127.39,127.35,3.69211013]
[1769300004178,1.70689482,127.39,127.35,11.54448543]
[1769300006395,1.70689482,127.39,127.36,2.10962761]
[1769300008477,1.70689482,127.39,127.35,11.54448543]
[1769300032932,1.70689482,127.39,127.35,11.54580515]
[1769300035609,1.46087579,127.37,127.32,49.90557448]
[1769300036222,1.46087579,127.36,127.32,52.01652181]
[1769300036627,1.46087579,127.36,127.32,42.05164092]
[1769300038337,1.46087579,127.36,127.32,44.16258825]
[1769300040539,1.46087579,127.36,127.32,42.05164092]
[1769300041055,1.46087579,127.35,127.32,40.55683321]
[1769300041333,1.46087579,127.35,127.31,1.49480771]
[1769300043238,1.46087579,127.35,127.31,3.60575504]
[1769300048536,1.46087579,127.35,127.32,3.45975602]
[1769300049138,1.46087579,127.35,127.32,1.34880869]
[1769300059046,1.29898854,127.34,127.31,39.10933682]
[1769300059226,1.29898854,127.32,127.31,39.10933682]
[1769300075836,1.29898854,127.32,127.31,19.14094934]
[1769300076043,1.27554992,127.31,127.26,1.29482917]
[1769300076360,1.27554992,127.29,127.26,1.29482917]
[1769300146219,1.56299598,127.28,127.25,1.4942934]
[1769300146724,1.56299598,127.28,127.24,1.4942934]
[1769300147019,1.56299598,127.27,127.24,1.4942934]
[1769300158613,1.56299598,127.27,127.24,3.60948808]
[1769300162923,1.56299598,127.27,127.24,1.4942934]
[1769300164831,1.50344979,127.28,127.25,3.70997799]
[1769300165532,1.50344979,127.28,127.25,1.59478331]
[1769300165939,1.50344979,127.28,127.24,3.70997799]
[1769300167142,1.50344979,127.27,127.24,1.59478331]
[1769300170937,1.50344979,127.27,127.23,10.17478203]
[1769300170938,1.50344979,127.27,127.23,1.79478331]
[1769300206470,1.54438274,127.26,127.23,0.2]
[1769300211570,1.54438274,127.26,127.23,1.65744579]
[1769300235188,1.54026934,127.28,127.24,1.50184225]
[1769300235487,1.54026934,127.28,127.25,3.61716422]
[1769300238987,1.54026934,127.28,127.25,1.50184225]
[1769300239365,1.54026934,127.29,127.26,1.50184225]
[1769300239588,1.54026934,127.3,127.26,1.50184225]
[1769300243489,1.54026934,127.3,127.26,3.61716422]
[1769300243787,1.54026934,127.3,127.27,1.50184225]
[1769300247796,9.9701785,127.31,127.28,1.50184225]
[1769300247797,1.54026934,127.31,127.28,1.50184225]
[1769300247996,1.54026934,127.31,127.29,1.50184225]
[1769300263912,1.54026934,127.31,127.28,1.5115102]
[1769300264409,1.50180308,127.3,127.28,1.5115102]
[1769300270493,2.11532197,127.3,127.26,1.5115102]
[1769300270699,1.50180308,127.29,127.26,1.5115102]
[1769300290840,1.5966299,127.28,127.24,1.60912734]
[1769300291126,1.5966299,127.27,127.24,1.60912734]
[1769300291424,3.71108421,127.27,127.24,1.60912734]
[1769300291609,1.5966299,127.27,127.24,1.60912734]
[1769300307143,1.51278994,127.26,127.24,1.60912734]
[1769300307342,3.62724425,127.25,127.23,0.2]
[1769300308354,1.51278994,127.25,127.23,0.2]
[1769300309049,1.51278994,127.25,127.23,1.73259569]
[1769300309551,3.62724425,127.25,127.23,1.73259569]
[1769300310523,3.62724425,127.25,127.23,0.2]
[1769300318953,1.51278994,127.25,127.23,0.2]
[1769300321857,3.62724425,127.25,127.23,0.2]
[1769300322457,1.51278994,127.25,127.23,0.2]
[1769300325257,1.51278994,127.25,127.23,1.67312788]
[1769300328558,5.25898479,127.26,127.23,1.67312788]
[1769300328760,6.74031492,127.26,127.23,1.67312788]
[1769300330564,3.59578444,127.26,127.23,1.67312788]
[1769300336970,3.59720918,127.26,127.23,1.67312788]
[1769300346279,3.62884567,127.25,127.23,0.2]
[1769300347083,3.62884567,127.25,127.23,1.70662441]
[1769300347576,2.11587905,127.25,127.23,1.70662441]
[1769300349375,3.62884567,127.26,127.23,1.70662441]
[1769300352279,1.596538,127.25,127.23,0.2]
[1769300353257,1.596538,127.25,127.23,1.68011932]
[1769300356585,3.71241705,127.26,127.23,1.68011932]
[1769300383108,1.51332888,127.25,127.23,0.2]
[1769300383413,3.62920793,127.24,127.22,0.2]
[1769300383784,2.11587905,127.24,127.22,1.7036276]
[1769300387716,3.62920793,127.24,127.22,1.7036276]
[1769300389313,3.62920793,127.24,127.22,0.2]
[1769300390791,3.62920793,127.23,127.22,0.2]
[1769300390994,3.62920793,127.23,127.21,0.2]
[1769300391795,1.51332888,127.23,127.21,0.2]
[1769300392305,3.62920793,127.24,127.21,1.7036276]
[1769300398820,11.48807709,127.25,127.21,1.7036276]
[1769300399017,1.51332888,127.25,127.21,1.7036276]
[1769300399211,11.48751147,127.26,127.21,1.7036276]
[1769300399609,1.51332888,127.25,127.21,1.7036276]
[1769300400823,11.48702514,127.27,127.23,1.5036276]
[1769300401330,1.51332888,127.27,127.23,1.5036276]
[1769300402222,11.48650963,127.28,127.23,1.5036276]
[1769300402426,9.37033085,127.28,127.24,1.5036276]
[1769300403107,11.48054611,127.29,127.25,1.48532444]
[1769300403411,1.50798174,127.29,127.25,1.48532444]
[1769300404419,3.62416052,127.29,127.25,1.48532444]
[1769300409330,1.50798174,127.3,127.25,1.48532444]
[1769300409526,1.50798174,127.31,127.27,1.48532444]
[1769300409835,11.47868587,127.32,127.27,1.48532444]
[1769300410417,11.47868587,127.32,127.28,1.48532444]
[1769300410613,1.50798174,127.32,127.28,1.48532444]
[1769300412635,9.96989089,127.33,127.29,1.5435397]
[1769300413330,11.54598502,127.33,127.29,1.5435397]
[1769300413635,11.54552682,127.34,127.29,1.5435397]
[1769300413933,9.42869691,127.35,127.31,1.5435397]
[1769300414114,11.54487569,127.35,127.31,1.5435397]
[1769300416924,9.96878156,127.35,127.31,1.5435397]
[1769300417127,11.54487569,127.35,127.31,1.5435397]
[1769300417325,1.57609413,127.34,127.31,1.5435397]
[1769300424849,1.57609413,127.35,127.31,1.5435397]
[1769300425029,1.57609413,127.35,127.32,1.5435397]
[1769300430156,1.57609413,127.36,127.32,1.5435397]
[1769300430467,1.57609413,127.37,127.34,3.65971848]
[1769300430637,1.57609413,127.37,127.34,1.5435397]
[1769300433975,5.34408856,127.36,127.27,23.77564019]
[1769300434154,5.34408856,127.36,127.2,0.2]
[1769300434155,2.11617878,127.25,127.12,2.31617878]
[1769300434357,1.50878841,127.26,127.21,2.11617878]
[1769300434558,1.50878841,127.26,127.16,24.8905953]
[1769300434868,1.50878841,127.26,127.2,2.11617878]
[1769300435050,29.00798913,127.26,127.2,2.11617878]
[1769300435446,11.48347021,127.26,127.2,2.11617878]
[1769300435990,23.58583277,127.25,127.2,2.11617878]
[1769300436174,23.58583277,127.25,127.21,1.55527898]
[1769300436569,31.44472945,127.25,127.21,1.55527898]
[1769300440384,33.56090823,127.25,127.21,1.55527898]
[1769300441287,35.06969664,127.25,127.21,1.55527898]
[1769300441878,32.95351786,127.25,127.21,1.55527898]
[1769300444886,25.09462118,127.25,127.21,1.55527898]
[1769300446987,25.88468649,127.25,127.21,1.55527898]
[1769300447282,24.37589808,127.25,127.21,1.55527898]
[1769300447583,2.11617878,127.25,127.21,1.55527898]
[1769300449291,3.62496719,127.25,127.21,1.55527898]
[1769300449660,2.11617878,127.24,127.21,1.55527898]
[1769300450664,25.09462118,127.25,127.21,1.55527898]
[1769300450665,27.21079996,127.25,127.21,1.55527898]
[1769300450983,3.62496719,127.25,127.21,1.55527898]
[1769300451183,1.50878841,127.24,127.21,1.55527898]
[1769300460393,8.64840349,127.26,127.21,1.55527898]
[1769300460394,4.41515789,127.26,127.21,1.55527898]
[1769300460595,2.11630417,127.25,127.22,1.55527898]
[1769300460895,3.62509258,127.25,127.22,1.55527898]
[1769300461283,1.50878841,127.25,127.22,1.55527898]
[1769300462287,3.62509258,127.25,127.22,1.55527898]
[1769300472286,2.11630417,127.25,127.22,1.55527898]
[1769300472683,3.79474746,127.27,127.23,1.66764274]
[1769300472884,2.11630417,127.26,127.23,1.66764274]
[1769300473105,3.79474746,127.26,127.23,1.66764274]
[1769300475212,1.67844329,127.25,127.19,138.54387306]
[1769300475407,3.79474746,127.23,127.2,1.66764274]
[1769300477105,1.67844329,127.21,127.19,1.66764274]
[1769300477410,3.79474746,127.21,127.19,1.66764274]
[1769300477587,2.11630417,127.21,127.19,1.66764274]
[1769300478392,3.79474746,127.21,127.19,1.66764274]
[1769300478599,2.11630417,127.21,127.19,1.66764274]
[1769300479995,3.79474746,127.21,127.17,1.66764274]
[1769300480189,2.11630417,127.21,127.17,1.66764274]
[1769300481320,3.79474746,127.21,127.17,1.66764274]
[1769300485124,1.67844329,127.21,127.17,1.66764274]
[1769300485616,1.67844329,127.21,127.18,1.66764274]
[1769300485807,4.58481277,127.22,127.18,1.66764274]
[1769300486320,2.11630417,127.21,127.18,1.66764274]
[1769300486617,3.79474746,127.21,127.18,1.66764274]
[1769300489204,2.4685086,127.23,127.19,1.66764274]
[1769300489401,2.11630417,127.22,127.19,1.66764274]
[1769300489600,3.79474746,127.22,127.19,1.66764274]
[1769300489902,2.11630417,127.22,127.19,1.66764274]
[1769300490121,3.79474746,127.23,127.19,1.66764274]
[1769300490418,1.67844329,127.22,127.19,1.66764274]
[1769300498725,10.76517558,127.25,127.19,1.66764274]
[1769300498726,3.66030187,127.23,127.19,1.66764274]
[1769300499308,1.5439977,127.22,127.19,1.66764274]
[1769300514364,3.66030187,127.22,127.19,1.66764274]
[1769300516969,2.11630417,127.21,127.19,1.66764274]
[1769300517268,3.66030187,127.22,127.19,1.66764274]
[1769300520975,3.66123361,127.22,127.19,1.66764274]
[1769300522173,3.66123361,127.23,127.19,1.66764274]
[1769300522476,2.11723591,127.22,127.19,1.66764274]
[1769300522858,3.81303731,127.22,127.19,1.66764274]
[1769300524172,1.6958014,127.22,127.19,1.66764274]
[1769300525881,1.6958014,127.24,127.2,1.63837055]
[1769300526285,1.6958014,127.24,127.21,1.63837055]
[1769300541904,3.81303731,127.24,127.21,1.63837055]
[1769300543107,1.6958014,127.24,127.21,1.63837055]
[1769300543407,3.81303731,127.24,127.21,1.63837055]
[1769300544505,1.6958014,127.24,127.21,1.63837055]
[1769300545812,3.81303731,127.24,127.21,1.63837055]
[1769300547378,1.6958014,127.24,127.21,1.63837055]
[1769300548604,3.81303731,127.24,127.21,1.63837055]
[1769300548808,3.8318272,127.23,127.2,1.59375778]
[1769300549023,3.8318272,127.22,127.19,1.59375778]
[1769300549479,3.8318272,127.21,127.19,1.59375778]
[1769300549674,3.8318272,127.21,127.18,1.59375778]
[1769300576140,1.66690683,127.18,127.16,30.0]
[1769300576326,2.11723591,127.17,127.16,30.0]
[1769300577748,3.78414274,127.17,127.16,30.0]
[1769300579349,3.78414274,127.17,127.16,12.67]
[1769300579947,3.78414274,127.17,127.16,7.60628096]
[1769300580551,3.78414274,127.17,127.16,7.2132658]
[1769300580928,3.78590623,127.17,127.16,7.2132658]
[1769300582721,1.66690683,127.17,127.16,7.2132658]
[1769300607658,2.1189994,127.18,127.16,7.2132658]
[1769300607862,3.5942388,127.18,127.16,7.2132658]
[1769300610255,1.4752394,127.18,127.16,7.2132658]